[Event "Titled Tuesday Blitz February 28 Late 2023"]
[White "Gatterer, Florian"]
[Black "Redzisz, Michal"]
[WhiteFideId "811688"]
[BlackFideId "21816107"]
[WhiteElo "2221"]
[BlackElo "2175"]
[Result "0-1"]
[Round "04"]
[TimeControl "180+2"]
[Date "2023.02.28"]
[WhiteClock "0:00:03"]
[BlackClock "0:00:01"]

1. Nf3 {[%clk 0:03:00]}  Nf6 {[%clk 0:02:59]} 2. g3 {[%clk 0:02:56]}  b6 {[%clk 0:02:59]} 3. Bg2 {[%clk 0:02:56]}  Bb7 {[%clk 0:02:59]} 4. O-O {[%clk 0:02:57]}  g6 {[%clk 0:03:00]} 5. b3 {[%clk 0:02:55]}  Bg7 {[%clk 0:03:00]} 6. Bb2 {[%clk 0:02:56]}  O-O {[%clk 0:03:00]} 7. c4 {[%clk 0:02:56]}  c5 {[%clk 0:03:00]} 8. d4 {[%clk 0:02:54]}  cxd4 {[%clk 0:03:01]} 9. Nxd4 {[%clk 0:02:51]}  Bxg2 {[%clk 0:03:02]} 10. Kxg2 {[%clk 0:02:52]}  d6 {[%clk 0:03:02]} 11. Nc3 {[%clk 0:02:51]}  Nbd7 {[%clk 0:03:02]} 12. Re1 {[%clk 0:02:49]}  Nc5 {[%clk 0:03:02]} 13. Kg1 {[%clk 0:02:49]}  h5 {[%clk 0:03:01]} 14. h4 {[%clk 0:02:46]}  Qd7 {[%clk 0:03:01]} 15. Kg2 {[%clk 0:02:44]}  Qb7+ {[%clk 0:02:36]} 16. Kg1 {[%clk 0:02:42]}  d5 {[%clk 0:02:36]} 17. cxd5 {[%clk 0:02:32]}  Nxd5 {[%clk 0:02:37]} 18. e3 {[%clk 0:02:14]}  Rfd8 {[%clk 0:02:30]} 19. Qf3 {[%clk 0:02:13]}  Nd3 {[%clk 0:02:26]} 20. Nxd5 {[%clk 0:02:01]}  Nxe1 {[%clk 0:02:23]} 21. Nf6+ {[%clk 0:01:59]}  Bxf6 {[%clk 0:02:19]} 22. Qxb7 {[%clk 0:01:59]}  Nd3 {[%clk 0:02:20]} 23. Ba3 {[%clk 0:01:50]}  Rab8 {[%clk 0:02:15]} 24. Qe4 {[%clk 0:01:42]}  Ne5 {[%clk 0:02:09]} 25. Rc1 {[%clk 0:01:35]}  b5 {[%clk 0:02:07]} 26. Rc7 {[%clk 0:01:23]}  b4 {[%clk 0:02:06]} 27. Bb2 {[%clk 0:01:20]}  Ng4 {[%clk 0:02:06]} 28. Kg2 {[%clk 0:00:50]}  Rb6 {[%clk 0:01:51]} 29. Qb1 {[%clk 0:00:49]}  e5 {[%clk 0:01:50]} 30. Nf3 {[%clk 0:00:39]}  e4 {[%clk 0:01:44]} 31. Bxf6 {[%clk 0:00:31]}  exf3+ {[%clk 0:01:44]} 32. Kxf3 {[%clk 0:00:31]}  Rxf6+ {[%clk 0:01:45]} 33. Ke4 {[%clk 0:00:24]}  Nxf2+ {[%clk 0:01:19]} 34. Ke5 {[%clk 0:00:15]}  Rf5+ {[%clk 0:00:42]} 35. Qxf5 {[%clk 0:00:13]}  gxf5 {[%clk 0:00:43]} 36. Rxa7 {[%clk 0:00:10]}  Ng4+ {[%clk 0:00:36]} 37. Kxf5 {[%clk 0:00:10]}  Nxe3+ {[%clk 0:00:36]} 38. Kg5 {[%clk 0:00:09]}  Rd5+ {[%clk 0:00:33]} 39. Kf4 {[%clk 0:00:08]}  Nd1 {[%clk 0:00:19]} 40. Rb7 {[%clk 0:00:08]}  Rd4+ {[%clk 0:00:19]} 41. Kg5 {[%clk 0:00:08]}  Nc3 {[%clk 0:00:16]} 42. Kxh5 {[%clk 0:00:06]}  Nxa2 {[%clk 0:00:16]} 43. g4 {[%clk 0:00:06]}  Kg7 {[%clk 0:00:09]} 44. g5 {[%clk 0:00:06]}  Nc3 {[%clk 0:00:08]} 45. g6 {[%clk 0:00:04]}  Rd5+ {[%clk 0:00:08]} 46. Kg4 {[%clk 0:00:04]}  Kxg6 {[%clk 0:00:08]} 47. Rxb4 {[%clk 0:00:04]}  Ne2 {[%clk 0:00:04]} 48. Rb6+ {[%clk 0:00:04]}  f6 {[%clk 0:00:04]} 49. h5+ {[%clk 0:00:05]}  Kf7 {[%clk 0:00:02]} 50. Rb7+ {[%clk 0:00:05]}  Ke6 {[%clk 0:00:02]} 51. Rb6+ {[%clk 0:00:06]}  Kf7 {[%clk 0:00:02]} 52. Rb7+ {[%clk 0:00:06]}  Ke6 {[%clk 0:00:02]} 53. Rb6+ {[%clk 0:00:07]}  Ke5 {[%clk 0:00:03]} 54. Rb7 {[%clk 0:00:07]}  Rd4+ {[%clk 0:00:03]} 55. Kf3 {[%clk 0:00:07]}  Ng1+ {[%clk 0:00:03]} 56. Kg2 {[%clk 0:00:07]}  Ne2 {[%clk 0:00:04]} 57. Kf3 {[%clk 0:00:07]}  Nf4 {[%clk 0:00:03]} 58. h6 {[%clk 0:00:07]}  Rd3+ {[%clk 0:00:02]} 59. Kf2 {[%clk 0:00:06]}  Rd2+ {[%clk 0:00:02]} 60. Kf3 {[%clk 0:00:05]}  Rh2 {[%clk 0:00:02]} 61. h7 {[%clk 0:00:06]}  Nd5 {[%clk 0:00:01]} 62. Kg3 {[%clk 0:00:05]}  Rh6 {[%clk 0:00:01]} 63. b4 {[%clk 0:00:05]}  f5 {[%clk 0:00:02]} 64. b5 {[%clk 0:00:06]}  f4+ {[%clk 0:00:02]} 65. Kf3 {[%clk 0:00:06]}  Rh3+ {[%clk 0:00:02]} 66. Kg2 {[%clk 0:00:05]}  Rh6 {[%clk 0:00:02]} 67. Kf3 {[%clk 0:00:05]}  Kf5 {[%clk 0:00:02]} 68. Rf7+ {[%clk 0:00:04]}  Ke6 {[%clk 0:00:01]} 69. Rb7 {[%clk 0:00:03]}  Ke5 {[%clk 0:00:01]} 0-1


[Site "https://www.chess.com"]

[Event "Titled Tuesday Blitz February 28 Late 2023"]
[White "Pino Perez, Lazaro"]
[Black "Mendez Machado, Andre"]
[WhiteFideId "3517055"]
[BlackFideId "6603793"]
[WhiteElo "2170"]
[BlackElo "1989"]
[Result "1-0"]
[Round "04"]
[TimeControl "180+2"]
[Date "2023.02.28"]
[WhiteClock "0:00:07"]
[BlackClock "0:00:02"]

1. d4 {[%clk 0:03:00]}  Nf6 {[%clk 0:02:57]} 2. Bf4 {[%clk 0:02:59]}  e6 {[%clk 0:02:57]} 3. e3 {[%clk 0:02:57]}  d5 {[%clk 0:02:58]} 4. Nf3 {[%clk 0:02:56]}  Bd6 {[%clk 0:02:58]} 5. Nbd2 {[%clk 0:02:55]}  O-O {[%clk 0:02:58]} 6. c3 {[%clk 0:02:54]}  c5 {[%clk 0:02:58]} 7. Bd3 {[%clk 0:02:53]}  Qc7 {[%clk 0:02:59]} 8. Bxd6 {[%clk 0:02:52]}  Qxd6 {[%clk 0:02:59]} 9. Ne5 {[%clk 0:02:52]}  Nbd7 {[%clk 0:02:57]} 10. f4 {[%clk 0:02:52]}  b5 {[%clk 0:02:54]} 11. a3 {[%clk 0:01:48]}  Rb8 {[%clk 0:02:45]} 12. g4 {[%clk 0:01:39]}  b4 {[%clk 0:02:20]} 13. axb4 {[%clk 0:01:33]}  cxb4 {[%clk 0:02:09]} 14. c4 {[%clk 0:01:29]}  dxc4 {[%clk 0:01:56]} 15. Ndxc4 {[%clk 0:01:20]}  Qd5 {[%clk 0:01:46]} 16. O-O {[%clk 0:00:54]}  Bb7 {[%clk 0:01:36]} 17. Qf3 {[%clk 0:00:45]}  Qxf3 {[%clk 0:01:19]} 18. Nxf3 {[%clk 0:00:46]}  Nxg4 {[%clk 0:01:17]} 19. Rxa7 {[%clk 0:00:42]}  Ndf6 {[%clk 0:00:54]} 20. h3 {[%clk 0:00:34]}  Nh6 {[%clk 0:00:52]} 21. Nfe5 {[%clk 0:00:29]}  Bd5 {[%clk 0:00:41]} 22. Nd2 {[%clk 0:00:29]}  Ra8 {[%clk 0:00:28]} 23. Rfa1 {[%clk 0:00:29]}  Rxa7 {[%clk 0:00:20]} 24. Rxa7 {[%clk 0:00:29]}  Ra8 {[%clk 0:00:13]} 25. Rc7 {[%clk 0:00:28]}  g6 {[%clk 0:00:08]} 26. e4 {[%clk 0:00:24]}  Ra1+ {[%clk 0:00:07]} 27. Kf2 {[%clk 0:00:22]}  Ba8 {[%clk 0:00:06]} 28. Kf3 {[%clk 0:00:13]}  Kg7 {[%clk 0:00:06]} 29. Nb3 {[%clk 0:00:08]}  Ra2 {[%clk 0:00:06]} 30. Nc5 {[%clk 0:00:07]}  Rxb2 {[%clk 0:00:05]} 31. Nxe6+ {[%clk 0:00:07]}  Kg8 {[%clk 0:00:02]} 32. Rc8+ {[%clk 0:00:07]} 1-0


[Site "https://www.chess.com"]

[Event "Titled Tuesday Blitz February 28 Late 2023"]
[White "Sarkar, Justin"]
[Black "Michalski, Olaf"]
[WhiteFideId "2010011"]
[BlackFideId "1106740"]
[WhiteElo "2189"]
[BlackElo "2173"]
[Result "1-0"]
[Round "04"]
[TimeControl "180+2"]
[Date "2023.02.28"]
[WhiteClock "0:00:54"]
[BlackClock "0:01:07"]

1. e4 {[%clk 0:02:41]}  c5 {[%clk 0:02:59]} 2. Nf3 {[%clk 0:02:40]}  a6 {[%clk 0:02:59]} 3. c3 {[%clk 0:02:30]}  Nf6 {[%clk 0:02:58]} 4. e5 {[%clk 0:02:28]}  Nd5 {[%clk 0:02:59]} 5. d4 {[%clk 0:02:28]}  e6 {[%clk 0:02:59]} 6. Be2 {[%clk 0:01:54]}  Nc6 {[%clk 0:02:57]} 7. c4 {[%clk 0:01:44]}  Nb6 {[%clk 0:02:39]} 8. d5 {[%clk 0:01:42]}  exd5 {[%clk 0:02:22]} 9. cxd5 {[%clk 0:01:41]}  Ne7 {[%clk 0:02:18]} 10. d6 {[%clk 0:01:37]}  Ng6 {[%clk 0:02:05]} 11. O-O {[%clk 0:01:26]}  f6 {[%clk 0:01:57]} 12. Re1 {[%clk 0:01:20]}  Nxe5 {[%clk 0:01:27]} 13. Nxe5 {[%clk 0:01:18]}  fxe5 {[%clk 0:01:27]} 14. Bh5+ {[%clk 0:01:08]}  g6 {[%clk 0:01:27]} 15. Rxe5+ {[%clk 0:01:06]}  Kf7 {[%clk 0:01:27]} 16. Bg5 {[%clk 0:00:57]}  Qxg5 {[%clk 0:01:07]} 17. Rxg5 {[%clk 0:00:55]}  gxh5 {[%clk 0:01:07]} 18. Qxh5+ {[%clk 0:00:54]} 1-0


[Site "https://www.chess.com"]

[Event "Titled Tuesday Blitz February 28 Late 2023"]
[White "Guimaraes, Wagner Peixoto"]
[Black "Albornoz Cabrera, Carlos Daniel"]
[WhiteFideId "2100940"]
[BlackFideId "3518736"]
[WhiteElo "2185"]
[BlackElo "2501"]
[Result "0-1"]
[Round "04"]
[TimeControl "180+2"]
[Date "2023.02.28"]
[WhiteClock "0:01:42"]
[BlackClock "0:02:42"]

1. d4 {[%clk 0:02:59]}  d5 {[%clk 0:02:59]} 2. Nf3 {[%clk 0:02:57]}  Nf6 {[%clk 0:02:59]} 3. c3 {[%clk 0:02:57]}  Bf5 {[%clk 0:02:58]} 4. Qb3 {[%clk 0:02:57]}  Qc8 {[%clk 0:02:56]} 5. Bf4 {[%clk 0:02:56]}  e6 {[%clk 0:02:55]} 6. Nbd2 {[%clk 0:02:57]}  Bd6 {[%clk 0:02:55]} 7. Bxd6 {[%clk 0:02:55]}  cxd6 {[%clk 0:02:56]} 8. e3 {[%clk 0:02:56]}  O-O {[%clk 0:02:56]} 9. Be2 {[%clk 0:02:56]}  Nc6 {[%clk 0:02:56]} 10. O-O {[%clk 0:02:56]}  Rb8 {[%clk 0:02:57]} 11. Qa3 {[%clk 0:02:55]}  Qc7 {[%clk 0:02:56]} 12. Rac1 {[%clk 0:02:52]}  b5 {[%clk 0:02:56]} 13. b4 {[%clk 0:02:42]}  a5 {[%clk 0:02:53]} 14. bxa5 {[%clk 0:02:40]}  Nxa5 {[%clk 0:02:52]} 15. Qb4 {[%clk 0:02:33]}  Nc4 {[%clk 0:02:49]} 16. Nb3 {[%clk 0:02:23]}  Ne4 {[%clk 0:02:46]} 17. Nh4 {[%clk 0:02:15]}  Bg6 {[%clk 0:02:43]} 18. Nxg6 {[%clk 0:02:15]}  hxg6 {[%clk 0:02:44]} 19. f3 {[%clk 0:02:07]}  Nf6 {[%clk 0:02:43]} 20. Kf2 {[%clk 0:02:03]}  Ra8 {[%clk 0:02:44]} 21. Bxc4 {[%clk 0:01:42]}  bxc4 {[%clk 0:02:42]} 0-1


[Site "https://www.chess.com"]

[Event "Titled Tuesday Blitz February 28 Late 2023"]
[White "Denishev, Marat"]
[Black "Lalanne, Pablo"]
[WhiteFideId "24131563"]
[BlackFideId "112151"]
[WhiteElo "2302"]
[BlackElo "2120"]
[Result "1-0"]
[Round "04"]
[TimeControl "180+2"]
[Date "2023.02.28"]
[WhiteClock "0:00:16"]
[BlackClock "0:00:03"]

1. d4 {[%clk 0:03:00]}  Nf6 {[%clk 0:02:59]} 2. c4 {[%clk 0:03:00]}  e6 {[%clk 0:02:59]} 3. Nf3 {[%clk 0:03:00]}  c5 {[%clk 0:02:57]} 4. d5 {[%clk 0:03:00]}  exd5 {[%clk 0:02:57]} 5. cxd5 {[%clk 0:03:01]}  d6 {[%clk 0:02:58]} 6. Nc3 {[%clk 0:03:02]}  g6 {[%clk 0:02:58]} 7. e4 {[%clk 0:03:01]}  a6 {[%clk 0:02:58]} 8. a4 {[%clk 0:03:01]}  Bg4 {[%clk 0:02:58]} 9. h3 {[%clk 0:03:00]}  Bxf3 {[%clk 0:02:58]} 10. Qxf3 {[%clk 0:03:01]}  Nbd7 {[%clk 0:02:58]} 11. Be2 {[%clk 0:03:01]}  Bg7 {[%clk 0:02:58]} 12. O-O {[%clk 0:03:01]}  O-O {[%clk 0:02:58]} 13. Re1 {[%clk 0:02:59]}  Qe7 {[%clk 0:02:49]} 14. Bf4 {[%clk 0:02:58]}  Rac8 {[%clk 0:02:35]} 15. Bf1 {[%clk 0:02:55]}  h5 {[%clk 0:02:29]} 16. a5 {[%clk 0:02:52]}  Ne5 {[%clk 0:02:21]} 17. Qg3 {[%clk 0:02:48]}  Nfd7 {[%clk 0:02:18]} 18. Bg5 {[%clk 0:02:43]}  f6 {[%clk 0:02:06]} 19. Bd2 {[%clk 0:02:43]}  g5 {[%clk 0:02:02]} 20. f4 {[%clk 0:02:38]}  gxf4 {[%clk 0:01:56]} 21. Bxf4 {[%clk 0:02:39]}  Kh7 {[%clk 0:01:50]} 22. Be2 {[%clk 0:02:36]}  Rg8 {[%clk 0:01:25]} 23. Qf2 {[%clk 0:02:30]}  Qf7 {[%clk 0:01:22]} 24. Ra3 {[%clk 0:02:25]}  Bh6 {[%clk 0:01:10]} 25. Bxh6 {[%clk 0:02:21]}  Kxh6 {[%clk 0:01:10]} 26. Nd1 {[%clk 0:02:19]}  Rg5 {[%clk 0:01:03]} 27. Ne3 {[%clk 0:02:16]}  Rcg8 {[%clk 0:01:02]} 28. Nf5+ {[%clk 0:02:16]}  Kh7 {[%clk 0:01:01]} 29. Bf1 {[%clk 0:02:11]}  Qf8 {[%clk 0:00:56]} 30. Rb3 {[%clk 0:02:07]}  Qb8 {[%clk 0:00:41]} 31. Ree3 {[%clk 0:01:51]}  c4 {[%clk 0:00:37]} 32. Rbc3 {[%clk 0:01:47]}  b5 {[%clk 0:00:32]} 33. Rg3 {[%clk 0:01:37]}  Nc5 {[%clk 0:00:30]} 34. Rxg5 {[%clk 0:01:32]}  Rxg5 {[%clk 0:00:31]} 35. Re3 {[%clk 0:01:22]}  Qc7 {[%clk 0:00:28]} 36. Kh1 {[%clk 0:01:19]}  Qd7 {[%clk 0:00:27]} 37. Be2 {[%clk 0:01:19]}  Nxe4 {[%clk 0:00:27]} 38. Rxe4 {[%clk 0:01:15]}  Qxf5 {[%clk 0:00:27]} 39. Rf4 {[%clk 0:01:15]}  Qb1+ {[%clk 0:00:26]} 40. Kh2 {[%clk 0:01:15]}  f5 {[%clk 0:00:20]} 41. h4 {[%clk 0:01:12]}  Rg4 {[%clk 0:00:16]} 42. Bxg4 {[%clk 0:00:32]}  Nxg4+ {[%clk 0:00:15]} 43. Rxg4 {[%clk 0:00:32]}  hxg4 {[%clk 0:00:14]} 44. Qa7+ {[%clk 0:00:30]}  Kh6 {[%clk 0:00:13]} 45. Qxa6 {[%clk 0:00:30]}  Qxb2 {[%clk 0:00:12]} 46. Qxd6+ {[%clk 0:00:29]}  Kh5 {[%clk 0:00:13]} 47. Qf4 {[%clk 0:00:21]}  Qf6 {[%clk 0:00:12]} 48. g3 {[%clk 0:00:16]}  c3 {[%clk 0:00:11]} 49. d6 {[%clk 0:00:16]}  c2 {[%clk 0:00:11]} 50. d7 {[%clk 0:00:16]}  Qe7 {[%clk 0:00:09]} 51. Qxf5+ {[%clk 0:00:15]}  Kh6 {[%clk 0:00:09]} 52. Qxc2 {[%clk 0:00:15]}  Qxd7 {[%clk 0:00:09]} 53. Qc1+ {[%clk 0:00:14]}  Kh7 {[%clk 0:00:09]} 54. Qb1+ {[%clk 0:00:13]}  Kg7 {[%clk 0:00:08]} 55. Qb2+ {[%clk 0:00:14]}  Kh7 {[%clk 0:00:08]} 56. a6 {[%clk 0:00:15]}  Qc6 {[%clk 0:00:03]} 57. Qb1+ {[%clk 0:00:13]}  Kg7 {[%clk 0:00:03]} 58. Qa1+ {[%clk 0:00:13]}  Kh7 {[%clk 0:00:04]} 59. Qb1+ {[%clk 0:00:13]}  Kg7 {[%clk 0:00:03]} 60. a7 {[%clk 0:00:13]}  Qb7 {[%clk 0:00:02]} 61. Qa1+ {[%clk 0:00:14]}  Kh7 {[%clk 0:00:02]} 62. a8=Q {[%clk 0:00:15]}  Qxa8 {[%clk 0:00:02]} 63. Qxa8 {[%clk 0:00:15]}  b4 {[%clk 0:00:03]} 64. Qe4+ {[%clk 0:00:15]}  Kg7 {[%clk 0:00:02]} 65. Qxg4+ {[%clk 0:00:16]}  Kf7 {[%clk 0:00:03]} 66. Qxb4 {[%clk 0:00:16]} 1-0


[Site "https://www.chess.com"]

[Event "Titled Tuesday Blitz February 28 Late 2023"]
[White "Rodrigues, Tiago Pereira"]
[Black "Meftahi, Houssem"]
[WhiteFideId "2101203"]
[BlackFideId "5501660"]
[WhiteElo "2168"]
[BlackElo "2124"]
[Result "1-0"]
[Round "04"]
[TimeControl "180+2"]
[Date "2023.02.28"]
[WhiteClock "0:00:07"]
[BlackClock "0:00:08"]

1. c4 {[%clk 0:01:10]}  e6 {[%clk 0:02:58]} 2. e3 {[%clk 0:01:09]}  d5 {[%clk 0:02:58]} 3. f4 {[%clk 0:01:09]}  d4 {[%clk 0:02:53]} 4. Nf3 {[%clk 0:01:09]}  dxe3 {[%clk 0:02:53]} 5. dxe3 {[%clk 0:01:10]}  Qxd1+ {[%clk 0:02:53]} 6. Kxd1 {[%clk 0:01:11]}  c5 {[%clk 0:02:52]} 7. b3 {[%clk 0:01:11]}  Nf6 {[%clk 0:02:51]} 8. Bb2 {[%clk 0:01:12]}  Nc6 {[%clk 0:02:51]} 9. Kc1 {[%clk 0:01:12]}  Be7 {[%clk 0:02:48]} 10. Bd3 {[%clk 0:01:08]}  Ng4 {[%clk 0:02:42]} 11. Re1 {[%clk 0:01:07]}  Nb4 {[%clk 0:02:36]} 12. Bf1 {[%clk 0:01:07]}  O-O {[%clk 0:02:26]} 13. a3 {[%clk 0:01:06]}  Nc6 {[%clk 0:02:24]} 14. h3 {[%clk 0:01:03]}  Nf6 {[%clk 0:02:20]} 15. Nbd2 {[%clk 0:00:59]}  b6 {[%clk 0:02:18]} 16. Kc2 {[%clk 0:00:59]}  Bb7 {[%clk 0:02:17]} 17. Rad1 {[%clk 0:00:58]}  a5 {[%clk 0:02:13]} 18. g4 {[%clk 0:00:52]}  a4 {[%clk 0:02:10]} 19. g5 {[%clk 0:00:52]}  axb3+ {[%clk 0:02:10]} 20. Nxb3 {[%clk 0:00:51]}  Ne4 {[%clk 0:02:09]} 21. Rd7 {[%clk 0:00:47]}  Bc8 {[%clk 0:02:00]} 22. Rc7 {[%clk 0:00:47]}  Bd6 {[%clk 0:01:44]} 23. Rxc6 {[%clk 0:00:46]}  Bd7 {[%clk 0:01:28]} 24. Rxb6 {[%clk 0:00:44]}  Bc7 {[%clk 0:01:26]} 25. Rb7 {[%clk 0:00:43]}  Rfc8 {[%clk 0:01:17]} 26. Be5 {[%clk 0:00:24]}  Bxe5 {[%clk 0:01:12]} 27. Nxe5 {[%clk 0:00:25]}  Ba4 {[%clk 0:01:12]} 28. Bg2 {[%clk 0:00:20]}  Nd6 {[%clk 0:01:09]} 29. Rb6 {[%clk 0:00:19]}  Rab8 {[%clk 0:01:05]} 30. Rxb8 {[%clk 0:00:18]}  Rxb8 {[%clk 0:01:04]} 31. Rb1 {[%clk 0:00:19]}  Nf5 {[%clk 0:01:01]} 32. Be4 {[%clk 0:00:17]}  Nxe3+ {[%clk 0:01:00]} 33. Kc3 {[%clk 0:00:17]}  f5 {[%clk 0:00:58]} 34. gxf6 {[%clk 0:00:17]}  gxf6 {[%clk 0:00:58]} 35. Nd3 {[%clk 0:00:17]}  f5 {[%clk 0:00:58]} 36. Bf3 {[%clk 0:00:16]}  Kg7 {[%clk 0:00:49]} 37. Ndxc5 {[%clk 0:00:16]}  Bxb3 {[%clk 0:00:36]} 38. Rxb3 {[%clk 0:00:16]}  Rc8 {[%clk 0:00:36]} 39. Nxe6+ {[%clk 0:00:16]}  Kf6 {[%clk 0:00:37]} 40. Nd4 {[%clk 0:00:12]}  Nxc4 {[%clk 0:00:37]} 41. Kd3 {[%clk 0:00:11]}  Kg7 {[%clk 0:00:24]} 42. Nxf5+ {[%clk 0:00:11]}  Kg6 {[%clk 0:00:24]} 43. Nd4 {[%clk 0:00:09]}  Kg7 {[%clk 0:00:23]} 44. a4 {[%clk 0:00:08]}  Kf6 {[%clk 0:00:21]} 45. Bb7 {[%clk 0:00:08]}  Rc7 {[%clk 0:00:20]} 46. h4 {[%clk 0:00:07]}  Na5 {[%clk 0:00:19]} 47. Rb6+ {[%clk 0:00:06]}  Kf7 {[%clk 0:00:19]} 48. Bd5+ {[%clk 0:00:06]}  Ke7 {[%clk 0:00:18]} 49. Rb5 {[%clk 0:00:07]}  Rc1 {[%clk 0:00:16]} 50. Rxa5 {[%clk 0:00:07]}  Rd1+ {[%clk 0:00:16]} 51. Kc4 {[%clk 0:00:07]}  Rc1+ {[%clk 0:00:17]} 52. Kb4 {[%clk 0:00:07]}  Rb1+ {[%clk 0:00:17]} 53. Kc5 {[%clk 0:00:08]}  Rf1 {[%clk 0:00:15]} 54. f5 {[%clk 0:00:07]}  Kf6 {[%clk 0:00:15]} 55. Ra6+ {[%clk 0:00:07]}  Ke5 {[%clk 0:00:15]} 56. Re6+ {[%clk 0:00:07]}  Kf4 {[%clk 0:00:15]} 57. f6 {[%clk 0:00:07]}  Kg4 {[%clk 0:00:14]} 58. Bc4 {[%clk 0:00:08]}  Rf4 {[%clk 0:00:12]} 59. a5 {[%clk 0:00:07]}  Kxh4 {[%clk 0:00:11]} 60. a6 {[%clk 0:00:07]}  Kg5 {[%clk 0:00:08]} 61. a7 {[%clk 0:00:07]} 1-0


[Site "https://www.chess.com"]

[Event "Titled Tuesday Blitz February 28 Late 2023"]
[White "Huang, Alex"]
[Black "Mikhalsky, Vladimir"]
[WhiteFideId "4302508"]
[BlackFideId "14144352"]
[WhiteElo "2029"]
[BlackElo "2272"]
[Result "0-1"]
[Round "04"]
[TimeControl "180+2"]
[Date "2023.02.28"]
[WhiteClock "0:00:01"]
[BlackClock "0:00:13"]

1. d4 {[%clk 0:03:00]}  Nf6 {[%clk 0:02:59]} 2. Nf3 {[%clk 0:03:00]}  g6 {[%clk 0:02:59]} 3. Bf4 {[%clk 0:02:59]}  Bg7 {[%clk 0:02:59]} 4. c3 {[%clk 0:02:59]}  O-O {[%clk 0:02:58]} 5. Nbd2 {[%clk 0:02:59]}  d6 {[%clk 0:02:58]} 6. e4 {[%clk 0:02:59]}  Nc6 {[%clk 0:02:57]} 7. Be2 {[%clk 0:02:59]}  e5 {[%clk 0:02:54]} 8. dxe5 {[%clk 0:02:59]}  dxe5 {[%clk 0:02:54]} 9. Nxe5 {[%clk 0:02:59]}  Nxe5 {[%clk 0:02:46]} 10. Bxe5 {[%clk 0:02:59]}  Re8 {[%clk 0:02:40]} 11. Bxf6 {[%clk 0:02:59]}  Qxf6 {[%clk 0:02:38]} 12. O-O {[%clk 0:02:55]}  Rd8 {[%clk 0:02:35]} 13. Qc2 {[%clk 0:02:47]}  Qg5 {[%clk 0:02:33]} 14. Nf3 {[%clk 0:02:44]}  Qf4 {[%clk 0:02:32]} 15. Rfe1 {[%clk 0:02:35]}  Bg4 {[%clk 0:02:29]} 16. h3 {[%clk 0:02:34]}  Bxf3 {[%clk 0:02:28]} 17. Bxf3 {[%clk 0:02:34]}  Be5 {[%clk 0:02:27]} 18. Rad1 {[%clk 0:02:14]}  c6 {[%clk 0:02:21]} 19. Rxd8+ {[%clk 0:01:54]}  Rxd8 {[%clk 0:02:20]} 20. Rd1 {[%clk 0:01:54]}  Rd6 {[%clk 0:01:59]} 21. Kf1 {[%clk 0:01:46]}  Qh2 {[%clk 0:01:56]} 22. Rxd6 {[%clk 0:01:36]}  Bxd6 {[%clk 0:01:55]} 23. Ke2 {[%clk 0:01:34]}  Bc5 {[%clk 0:01:50]} 24. b4 {[%clk 0:01:29]}  Bb6 {[%clk 0:01:50]} 25. c4 {[%clk 0:01:24]}  Bd4 {[%clk 0:01:39]} 26. Qd3 {[%clk 0:01:18]}  c5 {[%clk 0:01:39]} 27. a3 {[%clk 0:01:12]}  Qg1 {[%clk 0:01:37]} 28. Kd2 {[%clk 0:00:54]}  Qxf2+ {[%clk 0:01:34]} 29. Qe2 {[%clk 0:00:54]}  Qg1 {[%clk 0:01:31]} 30. bxc5 {[%clk 0:00:54]}  Qa1 {[%clk 0:01:30]} 31. Qd3 {[%clk 0:00:48]}  Qb2+ {[%clk 0:01:27]} 32. Qc2 {[%clk 0:00:49]}  Qxa3 {[%clk 0:01:27]} 33. e5 {[%clk 0:00:47]}  Qe3+ {[%clk 0:01:25]} 34. Kd1 {[%clk 0:00:46]}  Bxe5 {[%clk 0:01:18]} 35. Bxb7 {[%clk 0:00:46]}  Qg1+ {[%clk 0:01:15]} 36. Ke2 {[%clk 0:00:39]}  Qxc5 {[%clk 0:01:11]} 37. Qe4 {[%clk 0:00:35]}  Kg7 {[%clk 0:01:03]} 38. Bd5 {[%clk 0:00:35]}  a5 {[%clk 0:00:59]} 39. Qxe5+ {[%clk 0:00:34]}  f6 {[%clk 0:00:56]} 40. Qe3 {[%clk 0:00:30]}  Qb4 {[%clk 0:00:55]} 41. Kf3 {[%clk 0:00:29]}  a4 {[%clk 0:00:54]} 42. c5 {[%clk 0:00:29]}  a3 {[%clk 0:00:52]} 43. c6 {[%clk 0:00:28]}  Qd6 {[%clk 0:00:50]} 44. Qe6 {[%clk 0:00:26]}  Qc5 {[%clk 0:00:47]} 45. Qf7+ {[%clk 0:00:25]}  Kh6 {[%clk 0:00:47]} 46. c7 {[%clk 0:00:20]}  Qc3+ {[%clk 0:00:43]} 47. Kf2 {[%clk 0:00:20]}  Qd2+ {[%clk 0:00:41]} 48. Kg1 {[%clk 0:00:20]}  Qc1+ {[%clk 0:00:38]} 49. Kf2 {[%clk 0:00:19]}  Qf4+ {[%clk 0:00:38]} 50. Bf3 {[%clk 0:00:16]}  Qd2+ {[%clk 0:00:37]} 51. Kg1 {[%clk 0:00:16]}  a2 {[%clk 0:00:34]} 52. c8=Q {[%clk 0:00:14]}  a1=Q+ {[%clk 0:00:33]} 53. Kh2 {[%clk 0:00:13]}  Qf4+ {[%clk 0:00:33]} 54. g3 {[%clk 0:00:09]}  Qxf3 {[%clk 0:00:21]} 55. Qff8+ {[%clk 0:00:08]}  Kg5 {[%clk 0:00:21]} 56. Qcc5+ {[%clk 0:00:07]}  Qf5 {[%clk 0:00:20]} 57. h4+ {[%clk 0:00:07]}  Kg4 {[%clk 0:00:19]} 58. Qxf5+ {[%clk 0:00:05]}  Kxf5 {[%clk 0:00:20]} 59. Qc8+ {[%clk 0:00:05]}  Ke5 {[%clk 0:00:19]} 60. Qc5+ {[%clk 0:00:06]}  Ke6 {[%clk 0:00:19]} 61. Qc6+ {[%clk 0:00:06]}  Kf5 {[%clk 0:00:19]} 62. Qc5+ {[%clk 0:00:06]}  Ke4 {[%clk 0:00:19]} 63. Qc4+ {[%clk 0:00:07]}  Qd4 {[%clk 0:00:19]} 64. Qc6+ {[%clk 0:00:06]}  Ke3 {[%clk 0:00:17]} 65. Qe8+ {[%clk 0:00:05]}  Qe5 {[%clk 0:00:17]} 66. Qa8 {[%clk 0:00:04]}  Qe4 {[%clk 0:00:16]} 67. Qa3+ {[%clk 0:00:04]}  Ke2 {[%clk 0:00:16]} 68. Qb2+ {[%clk 0:00:04]}  Kf3 {[%clk 0:00:16]} 69. Qa3+ {[%clk 0:00:04]}  Kg4 {[%clk 0:00:15]} 70. Qc3 {[%clk 0:00:03]}  Qe2+ {[%clk 0:00:14]} 71. Kg1 {[%clk 0:00:03]}  Qf3 {[%clk 0:00:14]} 72. Qd4+ {[%clk 0:00:01]}  Kxg3 {[%clk 0:00:14]} 73. h5 {[%clk 0:00:01]}  gxh5 {[%clk 0:00:13]} 0-1


[Site "https://www.chess.com"]

[Event "Titled Tuesday Blitz February 28 Late 2023"]
[White "Onslow, Alfie"]
[Black "Grot, Blazej"]
[WhiteFideId "436976"]
[BlackFideId "21835845"]
[WhiteElo "2114"]
[BlackElo "1823"]
[Result "0-1"]
[Round "04"]
[TimeControl "180+2"]
[Date "2023.02.28"]
[WhiteClock "0:00:03"]
[BlackClock "0:02:20"]

1. e4 {[%clk 0:00:06]}  e5 {[%clk 0:02:58]} 2. Bc4 {[%clk 0:00:05]}  Nc6 {[%clk 0:02:58]} 3. d3 {[%clk 0:00:06]}  Nf6 {[%clk 0:02:58]} 4. Nc3 {[%clk 0:00:07]}  Bc5 {[%clk 0:02:58]} 5. f4 {[%clk 0:00:06]}  exf4 {[%clk 0:02:56]} 6. Bxf4 {[%clk 0:00:05]}  d6 {[%clk 0:02:53]} 7. Nf3 {[%clk 0:00:06]}  Bg4 {[%clk 0:02:52]} 8. Qe2 {[%clk 0:00:06]}  O-O {[%clk 0:02:52]} 9. O-O-O {[%clk 0:00:06]}  a6 {[%clk 0:02:52]} 10. h3 {[%clk 0:00:06]}  Bh5 {[%clk 0:02:45]} 11. g4 {[%clk 0:00:06]}  Bg6 {[%clk 0:02:46]} 12. Nh4 {[%clk 0:00:06]}  b5 {[%clk 0:02:45]} 13. Nxg6 {[%clk 0:00:05]}  hxg6 {[%clk 0:02:44]} 14. Bd5 {[%clk 0:00:06]}  Nxd5 {[%clk 0:02:42]} 15. Nxd5 {[%clk 0:00:07]}  Nd4 {[%clk 0:02:41]} 16. Qg2 {[%clk 0:00:07]}  c6 {[%clk 0:02:40]} 17. Ne3 {[%clk 0:00:06]}  Ne6 {[%clk 0:02:38]} 18. Qf3 {[%clk 0:00:04]}  Qf6 {[%clk 0:02:38]} 19. Rhf1 {[%clk 0:00:03]}  Nd4 {[%clk 0:02:31]} 20. Qf2 {[%clk 0:00:03]}  Ne6 {[%clk 0:02:25]} 21. Bg3 {[%clk 0:00:02]}  Qg5 {[%clk 0:02:22]} 22. Rde1 {[%clk 0:00:01]}  d5 {[%clk 0:02:21]} 23. Qe2 {[%clk 0:00:01]}  d4 {[%clk 0:02:20]} 24. h4 {[%clk 0:00:02]}  Qxe3+ {[%clk 0:02:19]} 25. Qxe3 {[%clk 0:00:03]}  dxe3 {[%clk 0:02:20]} 0-1


[Site "https://www.chess.com"]